bitfinex/quotes_SOLUSD_20250611
["timestamp","ask_amount","ask_price","bid_price","bid_amount"]
[1749646302168,25.19521358,166.89,166.78,18.64964886]
[1749646302373,25.19521358,166.89,166.83,25.19521358]
[1749646302568,25.19521358,166.88,166.78,18.64964886]
[1749646302874,25.19521358,166.86,166.81,25.19521358]
[1749646304372,12.62492981,166.88,166.78,18.64964886]
[1749646304564,25.19521358,166.86,166.81,25.19521358]
[1749646304752,13.2,166.85,166.81,25.19521358]
[1749646305169,5.99376648,166.84,166.78,18.64964886]
[1749646305354,25.19521358,166.83,166.78,18.64964886]
[1749646305553,25.19521358,166.81,166.76,25.19521358]
[1749646305776,25.19521358,166.8,166.75,25.19521358]
[1749646306154,20.97818268,166.84,166.75,25.19521358]
[1749646306359,25.19521358,166.8,166.75,25.19521358]
[1749646306561,25.19521358,166.8,166.72,18.64964886]
[1749646306971,0.14216157,166.83,166.76,25.19521358]
[1749646307161,25.19521358,166.81,166.76,25.19521358]
[1749646307362,31.19041741,166.8,166.75,25.19521358]
[1749646307766,31.19041741,166.8,166.71,18.64964886]
[1749646307962,31.19041741,166.8,166.75,25.19521358]
[1749646308157,5.99520383,166.8,166.71,18.64964886]
[1749646308359,6.13592805,166.84,166.77,25.19521358]
[1749646308559,25.19521358,166.8,166.71,18.64964886]
[1749646308783,25.19521358,166.8,166.7,18.64964886]
[1749646309080,25.19521358,166.8,166.73,25.19521358]
[1749646309081,1.708,166.8,166.73,25.19521358]
[1749646309283,25.19521358,166.78,166.73,25.19521358]
[1749646309463,25.19521358,166.78,166.7,18.64964886]
[1749646309464,31.19149588,166.77,166.72,25.19521358]
[1749646310364,31.19149588,166.77,166.67,26.0]
[1749646310365,5.9962823,166.77,166.73,25.19521358]
[1749646310560,31.19149588,166.77,166.72,25.19521358]
[1749646311082,25.19521358,166.76,166.71,25.19521358]
[1749646311378,31.19149588,166.77,166.72,25.19521358]
[1749646311773,5.9962823,166.77,166.71,25.19521358]
[1749646312085,25.19521358,166.76,166.71,25.19521358]
[1749646313675,25.19521358,166.75,166.68,18.64964886]
[1749646313993,25.19521358,166.74,166.66,18.64964886]
[1749646314168,25.19521358,166.74,166.65,26.0]
[1749646314368,25.19521358,166.74,166.69,25.19521358]
[1749646314996,6.6695,166.79,166.72,25.19521358]
[1749646315163,25.19521358,166.78,166.72,25.19521358]
[1749646315493,25.19521358,166.76,166.69,18.64964886]
[1749646315668,25.19521358,166.76,166.7,25.19521358]
[1749646315858,5.99603082,166.78,166.71,25.19521358]
[1749646316062,25.19521358,166.76,166.71,25.19521358]
[1749646316763,25.19521358,166.77,166.72,25.19521358]
[1749646317073,12.66517775,166.79,166.73,25.19521358]
[1749646317385,25.19521358,166.78,166.69,18.64964886]
[1749646317558,25.19521358,166.78,166.73,25.19521358]
[1749646317760,6.6695,166.79,166.69,18.64964886]
[1749646317965,31.86471358,166.79,166.74,25.19521358]
[1749646318267,6.6695,166.79,166.69,44.64964886]
[1749646318474,31.86471358,166.79,166.73,25.19521358]
[1749646318678,25.19521358,166.77,166.72,25.19521358]
[1749646318989,6.6695,166.79,166.73,25.19521358]
[1749646319295,25.19521358,166.78,166.73,25.19521358]
[1749646320278,31.86471358,166.79,166.73,25.19521358]
[1749646320489,14.98574233,166.83,166.78,25.19521358]
[1749646320490,6.6126,166.83,166.78,25.19521358]
[1749646320798,31.80781358,166.83,166.78,25.19521358]
[1749646321389,23.46984496,166.83,166.78,16.85724496]
[1749646321791,23.46984496,166.83,166.72,26.0]
[1749646321792,1.7038,166.84,166.81,16.85724496]
[1749646322491,16.85724496,166.83,166.78,16.85724496]
[1749646323008,14.55322148,166.86,166.78,16.85724496]
[1749646323176,16.85724496,166.84,166.78,16.85724496]
[1749646323369,16.85724496,166.84,166.79,16.85724496]
[1749646323585,16.85724496,166.85,166.79,16.85724496]
[1749646323778,16.85724496,166.85,166.8,16.85724496]
[1749646323982,16.85724496,166.84,166.79,16.85724496]
[1749646324501,14.55316846,166.86,166.78,16.85724496]
[1749646324687,16.85724496,166.84,166.78,16.85724496]
[1749646324893,16.85724496,166.84,166.79,16.85724496]
[1749646325270,14.55316846,166.86,166.79,16.85724496]
[1749646325472,16.85724496,166.84,166.79,16.85724496]
[1749646325818,8.56,166.86,166.82,16.85724496]
[1749646325969,19.5481,166.87,166.83,16.85724496]
[1749646326169,1.6738,166.88,166.84,16.85724496]
[1749646326478,16.85724496,166.9,166.84,16.85724496]
[1749646326804,16.85724496,166.89,166.83,16.85724496]
[1749646327189,7.0389,166.91,166.85,16.85724496]
[1749646327700,23.89614496,166.91,166.86,16.85724496]
[1749646327998,23.89614496,166.91,166.88,16.85724496]
[1749646327999,7.0389,166.91,166.88,16.85724496]
[1749646328174,10.2531,166.92,166.9,16.85724496]
[1749646328175,8.56,166.92,166.9,16.85724496]
[1749646328373,8.56,166.92,166.91,16.85724496]
[1749646328981,8.1349,166.96,166.91,16.85724496]
[1749646329177,8.1349,166.96,166.89,18.64964886]
[1749646329492,24.99214496,166.96,166.91,16.85724496]
[1749646330084,30.98160819,166.96,166.91,16.85724496]
[1749646330277,30.98160819,166.96,166.9,16.85724496]
[1749646330479,16.85724496,166.95,166.9,16.85724496]
[1749646331113,16.85724496,166.95,166.85,44.64964886]
[1749646331114,16.85724496,166.93,166.81,18.64964886]
[1749646331286,16.85724496,166.91,166.86,16.85724496]
[1749646331600,16.85724496,166.92,166.87,16.85724496]
[1749646332180,22.84819026,166.92,166.84,18.64964886]
[1749646332379,22.84819026,166.92,166.86,16.85724496]
[1749646332380,16.85724496,166.91,166.86,16.85724496]
[1749646332597,5.9909453,166.92,166.85,16.85724496]
[1749646332805,5.9909453,166.92,166.81,18.64964886]
[1749646332806,16.85724496,166.9,166.78,3.4068]
[1749646333004,8.683,166.87,166.83,16.85724496]
[1749646333189,8.683,166.87,166.77,18.64964886]
[1749646333190,8.683,166.87,166.85,16.85724496]
[1749646333506,8.4269,166.91,166.87,18.64964886]
[1749646333709,39.2,166.95,166.9,16.85724496]
[1749646333710,8.4269,166.95,166.9,16.85724496]
[1749646333914,8.4269,166.95,166.91,16.85724496]
[1749646334376,8.4269,166.95,166.9,16.85724496]
[1749646334576,31.27397807,166.95,166.89,16.85724496]
[1749646334786,16.85724496,166.94,166.89,16.85724496]
[1749646335301,31.27397807,166.95,166.9,16.85724496]
[1749646335495,31.27397807,166.95,166.72,10.0]
[1749646335496,16.85724496,166.91,166.72,10.0]
[1749646335696,26.0,166.92,166.81,16.85724496]
[1749646335697,16.85724496,166.86,166.81,16.85724496]
[1749646335909,16.85724496,166.85,166.8,16.85724496]
[1749646336114,16.85724496,166.84,166.78,16.85724496]
[1749646336290,22.85122432,166.84,166.78,16.85724496]
[1749646336805,16.85724496,166.83,166.78,16.85724496]
[1749646337108,16.85724496,166.85,166.8,16.85724496]
[1749646337309,25.22782937,166.84,166.79,25.22782937]
[1749646337611,5.99342459,166.85,166.71,0.8468]
[1749646337612,5.99342459,166.85,166.77,25.22782937]
[1749646337919,0.14216157,166.84,166.77,25.22782937]
[1749646338217,35.45347371,166.85,166.78,25.22782937]
[1749646338417,35.45347371,166.85,166.72,44.64964886]
[1749646338418,0.14216157,166.84,166.77,25.22782937]
[1749646338915,29.46,166.85,166.79,25.22782937]
[1749646339321,25.22782937,166.83,166.72,26.0]
[1749646339487,25.22782937,166.82,166.73,18.64964886]
[1749646339691,25.22782937,166.8,166.75,25.22782937]
[1749646339894,25.22782937,166.78,166.73,25.22782937]
[1749646340624,25.22782937,166.77,166.72,25.22782937]
[1749646340794,5.99538403,166.8,166.7,44.64964886]
[1749646340795,25.22782937,166.78,166.73,25.22782937]
[1749646341696,25.22782937,166.79,166.74,25.22782937]
[1749646342418,5.9948519,166.81,166.74,25.22782937]
[1749646342601,25.22782937,166.8,166.75,25.22782937]
[1749646342922,25.22782937,166.79,166.74,25.22782937]
[1749646345213,25.22782937,166.78,166.74,18.64964886]
[1749646346094,25.22782937,166.77,166.73,18.64964886]
[1749646346299,25.22782937,166.78,166.73,25.22782937]
[1749646346804,26.0,166.82,166.71,18.64964886]
[1749646346999,25.22782937,166.79,166.74,25.22782937]
[1749646347200,25.22782937,166.79,166.73,25.22782937]
[1749646347513,25.22782937,166.78,166.73,25.22782937]
[1749646348321,25.22782937,166.79,166.74,25.22782937]
[1749646348723,26.0,166.82,166.74,25.22782937]
[1749646348910,25.22782937,166.79,166.74,25.22782937]
[1749646349826,0.14216157,166.85,166.74,25.22782937]
[1749646349827,13.2,166.86,166.79,18.64964886]
[1749646350021,239.93566377,166.98,166.83,25.22782937]
[1749646350022,21.64,166.94,166.83,25.22782937]
[1749646350213,25.22782937,166.88,166.83,25.22782937]
[1749646350411,25.22782937,166.88,166.79,18.64964886]
[1749646350595,33.67902937,166.87,166.82,25.22782937]
[1749646350801,25.22782937,166.86,166.8,25.22782937]
[1749646351110,25.22782937,166.86,166.81,25.22782937]
[1749646351919,8.4512,166.87,166.82,25.22782937]
[1749646352119,44.50056931,166.91,166.82,25.22782937]
[1749646352120,25.22782937,166.89,166.84,25.22782937]
[1749646352528,25.22782937,166.9,166.84,25.22782937]
[1749646353127,8.0802,166.91,166.84,25.22782937]
[1749646353307,25.22782937,166.9,166.85,25.22782937]
[1749646353633,21.64,166.94,166.89,25.22782937]
[1749646353634,8.44,166.94,166.89,25.22782937]
[1749646353935,25.22782937,166.93,166.83,18.64964886]
[1749646354236,8.44,166.94,166.89,25.22782937]
[1749646354400,12.94001606,166.98,166.91,25.22782937]
[1749646354703,25.22782937,166.97,166.92,25.22782937]
[1749646355727,6.951,166.98,166.93,25.22782937]
[1749646355928,6.951,166.98,166.89,18.64964886]
[1749646355929,32.17882937,166.98,166.89,18.64964886]
[1749646356134,32.17882937,166.98,166.93,25.22782937]
[1749646356317,25.22782937,166.97,166.92,25.22782937]
[1749646357735,32.17882937,166.98,166.93,25.22782937]
[1749646359040,6.951,166.98,166.93,25.22782937]
[1749646359228,6.951,166.98,166.94,16.82872476]
[1749646359536,1.6872,167.0,166.91,18.64964886]
[1749646359842,1.6872,167.0,166.97,16.82872476]
[1749646360050,1.6872,167.0,166.96,16.82872476]
[1749646360408,29.14,167.02,166.93,18.64964886]
[1749646360657,45.96872476,167.02,166.97,16.82872476]
[1749646360934,45.96872476,167.02,166.98,16.82872476]
[1749646361108,29.14,167.02,166.9,44.64964886]
[1749646361311,35.12737534,167.02,166.9,44.64964886]
[1749646361505,16.82872476,166.96,166.91,16.82872476]
[1749646361709,42.66216157,167.01,166.91,16.82872476]
[1749646361935,42.66216157,167.01,166.85,3.00466688]
[1749646361936,16.82872476,166.99,166.94,16.82872476]
[1749646362133,22.81725454,166.99,166.94,16.82872476]
[1749646362539,16.82872476,166.97,166.92,16.82872476]
[1749646363036,5.98852978,166.99,166.92,16.82872476]
[1749646363219,16.82872476,166.97,166.86,26.0]
[1749646363408,16.82872476,166.94,166.89,16.82872476]
[1749646364335,18.52542476,166.95,166.9,16.82872476]
[1749646364710,18.52542476,166.95,166.87,18.64964886]
[1749646364711,16.82872476,166.93,166.88,16.82872476]
[1749646364925,7.68673355,166.95,166.87,16.82872476]
[1749646364926,6.6428,166.94,166.87,16.82872476]
[1749646365572,6.6428,166.94,166.88,16.82872476]
[1749646365934,6.6428,166.94,166.87,16.82872476]
[1749646366136,16.82872476,166.9,166.81,18.64964886]
[1749646366442,16.82872476,166.9,166.85,16.82872476]
[1749646366639,16.82872476,166.89,166.84,16.82872476]
[1749646366839,16.82872476,166.9,166.85,16.82872476]
[1749646367350,16.82872476,166.9,166.84,16.82872476]
[1749646367546,16.82872476,166.89,166.84,16.82872476]
[1749646368052,31.99053495,166.93,166.8,18.64964886]
[1749646368053,16.82872476,166.91,166.86,16.82872476]
[1749646368250,16.82872476,166.91,166.8,18.64964886]
[1749646368450,16.82872476,166.91,166.86,16.82872476]
[1749646370749,16.82872476,166.93,166.88,16.82872476]
[1749646371443,6.6428,166.94,166.87,16.82872476]
[1749646371444,16.82872476,166.92,166.87,16.82872476]
[1749646372237,16.82872476,166.9,166.84,16.82872476]
[1749646372841,16.82872476,166.9,166.83,18.64964886]
[1749646373165,16.82872476,166.91,166.86,16.82872476]
[1749646373350,5.99064935,166.93,166.86,16.82872476]
[1749646373351,16.82872476,166.92,166.86,16.82872476]
[1749646373758,16.82872476,166.92,166.87,16.82872476]
[1749646375945,16.82872476,166.91,166.85,16.82872476]
[1749646377067,16.82872476,166.89,166.83,16.82872476]
[1749646377441,16.82872476,166.87,166.8,26.0]
[1749646377642,16.82872476,166.86,166.81,18.64964886]
[1749646377945,16.82872476,166.86,166.81,16.82872476]
[1749646378143,0.14216157,166.91,166.8,16.82872476]
[1749646378144,16.82872476,166.85,166.8,16.82872476]
[1749646378546,16.82872476,166.83,166.75,18.64964886]
[1749646378764,16.82872476,166.81,166.7,3.4142]
[1749646378947,16.82872476,166.81,166.72,26.0]
[1749646379145,16.82872476,166.81,166.75,16.82872476]
[1749646379476,13.2,166.85,166.74,16.82872476]
[1749646379477,16.82872476,166.79,166.74,16.82872476]
[1749646379650,16.82872476,166.8,166.75,16.82872476]
[1749646379974,0.14216157,166.84,166.69,10.85180853]
[1749646379975,16.82872476,166.81,166.76,16.82872476]
[1749646380151,16.82872476,166.82,166.77,16.82872476]
[1749646380859,13.2,166.85,166.78,16.82872476]
[1749646381061,16.82872476,166.84,166.79,16.82872476]
[1749646381265,16.82872476,166.84,166.78,16.82872476]
[1749646381580,16.82872476,166.83,166.78,16.82872476]
[1749646381961,16.82872476,166.84,166.78,16.82872476]
[1749646382484,16.82872476,166.82,166.73,18.64964886]
[1749646382650,16.82872476,166.82,166.7,18.64964886]
[1749646382651,16.82872476,166.78,166.7,18.64964886]
[1749646382970,16.82872476,166.77,166.72,16.82872476]
[1749646383472,16.82872476,166.77,166.7,18.64964886]
[1749646383473,16.82872476,166.76,166.71,16.82872476]
[1749646383876,6.4279,166.77,166.72,16.82872476]
[1749646384170,23.25662476,166.77,166.72,16.82872476]
[1749646384650,23.25662476,166.77,166.69,18.64964886]
[1749646384856,23.25662476,166.77,166.72,16.82872476]
[1749646385051,6.4279,166.77,166.73,16.82872476]
[1749646385762,23.25662476,166.77,166.72,16.82872476]
[1749646386272,23.25662476,166.77,166.69,18.64964886]
[1749646386466,16.82872476,166.76,166.71,16.82872476]
[1749646386770,16.82872476,166.76,166.67,44.64964886]
[1749646386771,23.25662476,166.77,166.72,16.82872476]
[1749646387069,6.4279,166.77,166.73,16.82872476]
[1749646387768,13.2,166.78,166.75,16.82872476]
[1749646387970,1.6937,166.79,166.75,16.82872476]
[1749646388187,1.6937,166.79,166.72,18.64964886]
[1749646388347,1.6937,166.79,166.75,16.82872476]
[1749646389049,1.6937,166.79,166.76,16.82872476]
[1749646389449,1.6937,166.79,166.72,18.64964886]
[1749646389450,1.6937,166.79,166.75,16.82872476]
[1749646389956,1.6937,166.79,166.76,16.82872476]
[1749646390363,1.6937,166.79,166.77,16.82872476]
[1749646390658,1.6937,166.79,166.76,16.82872476]
[1749646390958,1.6937,166.79,166.75,16.82872476]
[1749646391160,10.0,166.93,166.75,16.82872476]
[1749646391161,1.6038,166.84,166.75,18.64964886]
[1749646391356,18.43252476,166.84,166.79,16.82872476]
[1749646391555,1.6038,166.84,166.79,16.82872476]
[1749646391759,18.43252476,166.84,166.79,16.82872476]
[1749646391975,1.6038,166.84,166.79,16.82872476]
[1749646393078,16.82872476,166.83,166.75,44.64964886]
[1749646393265,18.43252476,166.84,166.79,16.82872476]
[1749646393454,1.6038,166.84,166.8,16.82872476]
[1749646393965,1.6038,166.84,166.79,16.82872476]
[1749646394477,1.6038,166.84,166.8,16.82872476]
[1749646394972,0.14216157,166.8,166.65,6.4523185]
[1749646395174,16.82872476,166.78,166.73,16.82872476]
[1749646395566,26.0,166.82,166.76,16.82872476]
[1749646395779,26.0,166.82,166.78,16.82872476]
[1749646395966,26.0,166.82,166.77,16.82872476]
[1749646396167,42.82872476,166.82,166.77,16.82872476]
[1749646396676,42.82872476,166.82,166.76,16.82872476]
[1749646397271,42.82872476,166.82,166.72,18.64964886]
[1749646397272,16.82872476,166.82,166.69,26.0]
[1749646397573,16.82872476,166.82,166.76,16.82872476]
[1749646397787,16.97088633,166.81,166.75,16.82872476]
[1749646398155,16.97088633,166.81,166.74,18.64964886]
[1749646398156,16.82872476,166.81,166.74,18.64964886]
[1749646398374,16.97088633,166.82,166.76,16.82872476]
[1749646399579,16.97088633,166.82,166.74,18.64964886]
[1749646399900,16.82872476,166.81,166.76,16.82872476]
[1749646400671,0.14216157,166.82,166.77,16.82872476]
[1749646400862,30.02872476,166.83,166.78,16.82872476]
[1749646401167,1.6038,166.84,166.8,16.82872476]
[1749646401787,1.6038,166.84,166.74,18.64964886]
[1749646401788,1.6038,166.84,166.81,16.82872476]
[1749646402087,7.0112,166.85,166.82,16.82872476]
[1749646402375,7.0112,166.85,166.81,16.82872476]
[1749646403382,7.0112,166.85,166.8,16.82872476]
[1749646403970,16.82872476,166.84,166.78,16.82872476]
[1749646404159,16.82872476,166.84,166.79,16.82872476]
[1749646404366,7.0112,166.85,166.79,16.82872476]
[1749646404671,29.83334752,166.85,166.79,16.82872476]
[1749646404871,23.83992476,166.85,166.79,16.82872476]
[1749646405071,23.83992476,166.85,166.77,18.64964886]
[1749646405272,13.2,166.84,166.79,16.82872476]
[1749646405877,13.2,166.83,166.72,26.0]
[1749646406131,16.82872476,166.82,166.77,16.82872476]
[1749646406266,13.2,166.83,166.78,16.82872476]
[1749646406471,13.2,166.83,166.79,16.82872476]
[1749646406675,13.2,166.83,166.78,16.82872476]
[1749646406676,30.02872476,166.83,166.78,16.82872476]
[1749646406982,30.02872476,166.83,166.73,18.64964886]
[1749646407185,30.02872476,166.83,166.78,16.82872476]
[1749646407565,13.2,166.83,166.79,16.82872476]
[1749646407992,13.2,166.83,166.73,18.64964886]
[1749646408363,13.2,166.83,166.78,16.82872476]
[1749646408678,13.2,166.83,166.79,16.82872476]
[1749646410896,13.2,166.83,166.73,18.64964886]
[1749646410897,13.2,166.83,166.8,16.82872476]
[1749646411193,13.2,166.83,166.79,16.82872476]
[1749646411383,13.2,166.83,166.76,18.64964886]
[1749646411587,13.2,166.83,166.79,16.82872476]
[1749646413095,13.2,166.83,166.78,16.82872476]
[1749646413981,13.2,166.83,166.73,0.14216157]
[1749646414192,13.2,166.82,166.79,16.82872476]
[1749646414400,13.2,166.81,166.79,16.82872476]
[1749646414700,1.7246,166.88,166.81,18.64964886]
[1749646415006,1.7246,166.88,166.84,16.82872476]
[1749646415379,1.7246,166.88,166.85,16.82872476]
[1749646415579,6.3736,166.89,166.86,16.82872476]
[1749646416707,23.20232476,166.89,166.83,16.82872476]
[1749646418180,16.82872476,166.84,166.71,3.0984]
[1749646418504,26.14216157,166.85,166.78,16.82872476]
[1749646418804,16.82872476,166.84,166.79,16.82872476]
[1749646419601,22.82252141,166.84,166.79,16.82872476]
[1749646419804,13.2,166.83,166.78,16.82872476]
[1749646419984,13.2,166.83,166.75,18.64964886]
[1749646420177,13.2,166.83,166.78,16.82872476]
[1749646421279,13.2,166.83,166.79,16.82872476]
[1749646421501,30.02872476,166.83,166.75,18.64964886]
[1749646421700,16.82872476,166.79,166.68,0.14216157]
[1749646421904,16.97088633,166.77,166.66,2.8072]
[1749646422108,16.82872476,166.76,166.7,16.82872476]
[1749646422402,16.82872476,166.76,166.71,16.82872476]
[1749646422587,16.82872476,166.76,166.68,44.64964886]
[1749646422794,16.82872476,166.76,166.71,16.82872476]
[1749646423104,16.97088633,166.77,166.71,16.82872476]
[1749646424306,16.97088633,166.77,166.72,16.82872476]
[1749646424799,16.97088633,166.77,166.71,16.82872476]
[1749646425004,18.39842476,166.76,166.71,16.82872476]
[1749646425607,1.5697,166.76,166.72,16.82872476]
[1749646426306,32.1485,166.8,166.74,16.82872476]
[1749646426483,48.97722476,166.8,166.74,16.82872476]
[1749646426690,16.82872476,166.79,166.73,16.82872476]
[1749646427707,16.82872476,166.78,166.73,16.82872476]
[1749646428899,16.82872476,166.78,166.69,18.64964886]
[1749646429209,16.97088633,166.77,166.72,16.82872476]
[1749646430807,16.82872476,166.76,166.69,18.64964886]
[1749646431100,16.97088633,166.77,166.72,16.82872476]
[1749646431492,16.97088633,166.77,166.69,18.64964886]
[1749646431694,0.14216157,166.78,166.72,16.82872476]
[1749646432005,16.97088633,166.78,166.73,16.82872476]
[1749646432304,16.82872476,166.77,166.69,18.64964886]
[1749646432515,16.82872476,166.75,166.7,16.82872476]
[1749646432809,30.02872476,166.74,166.69,16.82872476]
[1749646433000,13.2,166.74,166.7,16.82872476]
[1749646433199,13.2,166.74,166.7,10.35547838]
[1749646433909,10.35547838,166.75,166.7,10.35547838]
[1749646434427,10.49763995,166.75,166.68,18.64964886]
[1749646434589,10.35547838,166.74,166.65,26.0]
[1749646434780,10.35547838,166.74,166.66,18.64964886]
[1749646435113,10.35547838,166.74,166.69,10.35547838]
[1749646435611,12.10283995,166.73,166.68,10.35547838]
[1749646435814,10.35547838,166.72,166.67,10.35547838]
[1749646436149,16.93957838,166.71,166.66,10.35547838]
[1749646436411,16.93957838,166.71,166.63,26.0]
[1749646436412,10.49763995,166.7,166.63,26.0]
[1749646436593,10.49763995,166.7,166.65,10.35547838]
[1749646436795,0.14216157,166.7,166.64,10.35547838]
[1749646437004,6.5841,166.71,166.69,10.35547838]
[1749646438015,6.5841,166.71,166.68,10.35547838]
[1749646438214,6.5841,166.71,166.62,18.64964886]
[1749646438405,6.5841,166.71,166.61,21.71415264]
[1749646438605,0.14216157,166.7,166.62,18.64964886]
[1749646438914,0.14216157,166.7,166.66,10.35547838]
[1749646439287,6.14101188,166.7,166.66,10.35547838]
[1749646439483,16.49649026,166.7,166.65,10.35547838]
[1749646439920,6.5841,166.71,166.67,10.35547838]
[1749646440115,6.5841,166.71,166.68,10.35547838]
[1749646440616,0.14216157,166.68,166.61,18.6450382]
[1749646440818,0.14216157,166.68,166.61,7.75040389]
[1749646440819,0.14216157,166.67,166.61,7.75040389]
[1749646441023,0.14216157,166.67,166.62,10.35547838]
[1749646441193,61.4641,166.71,166.61,7.75040389]
[1749646441400,10.49763995,166.7,166.62,18.64964886]
[1749646441721,10.49763995,166.7,166.61,7.75040389]
[1749646441898,0.14216157,166.7,166.64,10.35547838]
[1749646442107,10.49763995,166.7,166.62,18.64964886]
[1749646442304,10.49763995,166.7,166.65,10.35547838]
[1749646443207,10.49763995,166.7,166.61,7.75040389]
[1749646443208,0.14216157,166.68,166.61,7.75040389]
[1749646443706,10.49763995,166.68,166.61,7.75040389]
[1749646443910,12.02107838,166.65,166.61,7.75040389]
[1749646444107,10.49763995,166.62,166.61,7.75040389]
[1749646444310,10.49763995,166.62,166.5,100.0]
[1749646444514,0.14216157,166.61,166.57,10.35547838]
[1749646445018,0.14216157,166.61,166.58,10.35547838]
[1749646445222,16.90117838,166.63,166.53,44.64964886]
[1749646445223,6.5457,166.63,166.6,10.35547838]
[1749646445927,6.5457,166.63,166.61,10.35547838]
[1749646446129,27.6656,166.65,166.54,21.68712618]
[1749646446435,27.6656,166.65,166.55,18.64964886]
[1749646446729,12.02107838,166.65,166.6,10.35547838]
[1749646447232,12.02107838,166.65,166.55,18.64964886]
[1749646447233,10.49763995,166.64,166.59,10.35547838]
[1749646447810,0.14216157,166.64,166.55,18.64964886]
[1749646448519,10.49763995,166.64,166.59,10.35547838]
[1749646448822,0.14216157,166.61,166.53,26.0]
[1749646449007,0.14216157,166.61,166.56,10.35547838]
[1749646449008,10.49763995,166.61,166.56,10.35547838]
[1749646449208,0.14216157,166.61,166.54,18.64964886]
[1749646449417,0.14216157,166.61,166.56,10.35547838]
[1749646449707,0.14216157,166.61,166.5,115.21588883]
[1749646449708,10.35547838,166.59,166.51,18.64964886]
[1749646450045,10.35547838,166.56,166.5,100.0]
[1749646450333,12.09023995,166.57,166.52,10.35547838]
[1749646450640,1.5926,166.57,166.54,10.35547838]
[1749646450817,1.5926,166.57,166.51,18.64964886]
[1749646451008,1.5926,166.57,166.54,10.35547838]
[1749646451213,1.5926,166.57,166.51,18.64964886]
[1749646451737,1.5926,166.57,166.53,10.35547838]
[1749646451915,1.5926,166.57,166.51,18.64964886]
[1749646452232,1.5926,166.57,166.53,10.35547838]
[1749646452633,1.5926,166.57,166.51,18.64964886]
[1749646452836,0.14216157,166.56,166.5,100.0]
[1749646453013,10.49763995,166.56,166.5,100.0]
[1749646453336,26.14216157,166.56,166.5,110.35547838]
[1749646453545,26.14216157,166.56,166.5,100.0]
[1749646453839,32.14607447,166.56,166.5,100.0]
[1749646454019,10.49763995,166.55,166.5,100.0]
[1749646454544,0.14216157,166.55,166.5,100.0]
[1749646454832,10.49763995,166.55,166.5,110.35547838]
[1749646455141,10.49763995,166.55,166.5,100.0]
[1749646455335,10.35547838,166.54,166.5,100.0]
[1749646455515,10.49763995,166.55,166.5,100.0]
[1749646455718,10.49763995,166.55,166.5,110.35547838]
[1749646455923,0.14216157,166.55,166.5,100.0]
[1749646456445,6.3591,166.59,166.54,10.35547838]
[1749646456742,6.3591,166.59,166.57,10.35547838]
[1749646457041,6.3591,166.59,166.56,10.35547838]
[1749646457219,6.3591,166.59,166.54,10.35547838]
[1749646457416,6.3591,166.59,166.55,10.35547838]
[1749646459713,10.49763995,166.58,166.53,10.35547838]
[1749646459913,10.49763995,166.58,166.5,100.0]
[1749646459914,23.59763995,166.58,166.5,100.0]
[1749646460136,23.59763995,166.58,166.53,10.35547838]
[1749646460632,23.59763995,166.58,166.5,100.0]
[1749646460633,13.1,166.58,166.55,10.35547838]
[1749646460836,16.71457838,166.59,166.54,10.35547838]
[1749646461043,16.71457838,166.59,166.51,18.64964886]
[1749646461215,10.35547838,166.58,166.53,10.35547838]
[1749646461738,12.36206353,166.59,166.51,10.35547838]
[1749646461739,10.49763995,166.57,166.51,10.35547838]
[1749646462441,26.0,166.55,166.51,10.35547838]
[1749646462744,13.24216157,166.58,166.54,10.35547838]
[1749646463041,13.1,166.58,166.54,10.35547838]
[1749646463213,6.3591,166.59,166.52,18.64964886]
[1749646463412,6.3591,166.59,166.57,10.35547838]
[1749646463742,16.3568531,166.63,166.58,10.35547838]
[1749646463743,6.4276,166.63,166.58,10.35547838]
[1749646463915,6.4276,166.63,166.61,10.35547838]
[1749646464115,6.4276,166.63,166.6,10.35547838]
[1749646464326,12.01927838,166.66,166.6,10.35547838]
[1749646464516,26.0,166.63,166.6,10.35547838]
[1749646464712,1.6638,166.66,166.62,10.35547838]
[1749646464942,1.6638,166.66,166.64,10.35547838]
[1749646465238,6.5981,166.67,166.64,16.8879992]
[1749646465434,6.5981,166.67,166.59,26.0]
[1749646465947,9.5983,166.7,166.66,16.8879992]
[1749646466120,8.08,166.7,166.69,16.8879992]
[1749646466518,1.6285,166.74,166.69,16.8879992]
[1749646466727,1.6285,166.74,166.65,35.53764806]
[1749646466728,1.6285,166.74,166.7,16.8879992]
[1749646466931,18.5164992,166.74,166.69,16.8879992]
[1749646467229,18.5164992,166.74,166.62,26.0]
[1749646467230,1.6285,166.74,166.65,16.8879992]
[1749646467430,1.6285,166.74,166.71,16.8879992]
[1749646467943,1.6285,166.74,166.72,16.8879992]
[1749646468138,26.0,166.74,166.72,16.8879992]